[Event "Mitropa Cup Women 2022"]
[Site "Corte"]
[Date "2022.05.04"]
[Round "5.8"]
[White "Mayrhuber, Nikola"]
[Black "Schippke, Manon"]
[Result "1-0"]
[ECO "D31"]
[WhiteElo "2110"]
[BlackElo "2072"]
[Annotator "TA"]
[PlyCount "35"]
[EventDate "2022.04.30"]
[EventType "team-tourn"]
[EventCountry "FRA"]
[SourceTitle "playchess.com"]
[Source "ChessBase"]
[SourceQuality "1"]
[BlackTeam "France"]
[BlackTeamCountry "FRA"]
[TimeControl "40/5400+30:1800+30"]

{[%evp 11,35,-10,-2,-54,-55,-62,-70,-103,20,19,94,91,85,73,82,55,114,105,126,68,72,81,1821,1847,29993,29994]} 1. d4 {[%emt 0:00:03]} d5 {[%emt 0:00:10]} 2. c4 {[%emt 0:00:06]} e6 {[%emt 0:00:13]} 3. Nc3 {[%emt 0:00:08]} c6 {[%emt 0:00:04]} 4. Nf3 {[%emt 0:07:41]} dxc4 {[%emt 0:00:36]} 5. g3 {[%emt 0:01:04]} b5 {[%emt 0:03:39]} 6. Bg2 {[%emt 0:02:06]} Nf6 {[%emt 0:02:00]} 7. e4 {[%emt 0:01:59] E04: Open Catalan: 5 Nf3.} ({White should try} 7. Ne5 $11) 7... Be7 $15 {[%emt 0:06:43]} 8. Ne5 {[%emt 0:04:20]} O-O {[%emt 0:04:35]} 9. a4 {[%emt 0:14:29] [#] Black is slightly better.} Bb4 $146 {[%emt 0:17:31]} ({Black should play} 9... b4 $17 10. Ne2 c5) ({Predecessor:} 9... Bb7 10. Bg5 Nbd7 11. Nxd7 Qxd7 12. Bxf6 Bxf6 13. e5 Be7 14. Qg4 b4 15. Ne4 f5 16. exf6 Bxf6 17. Nxf6+ Rxf6 {1-0 (35) Baier,U-Hemmerling,F St Ingbert 1991}) 10. O-O $11 {[%emt 0:03:46]} Bxc3 {[%emt 0:00:16]} (10... a6 $11) 11. bxc3 $16 {[%emt 0:00:07]} Bb7 {[%emt 0:02:21]} 12. Ng4 {[%emt 0:08:56]} Nxg4 {[%emt 0:21:18]} 13. Qxg4 {[%emt 0:00:09]} a6 {[%emt 0:16:43]} (13... Qd7 $14) 14. e5 {[%emt 0:04:57] Strongly threatening Bg5.} Kh8 {[%emt 0:01:06]} 15. Bg5 $40 {[%emt 0:06:31][%mdl 128] White is up to no good.} (15. axb5 $1 $16 axb5 16. Bg5) 15... Qc7 $1 $14 {[%emt 0:00:33] [#]} 16. Be4 $1 {[%emt 0:08:06][%cal Oe4h7] aiming for Bxh7! White is much more active. This bishop pair is nice.} c5 $2 {[%emt 0:07:47][%mdl 8192] [#]} (16... Nd7 $16) 17. Bxh7 $1 $18 {[%emt 0:09:13][%mdl 512] Intending Qh4 and mate.} Kxh7 {[%emt 0:00:21] [#]} (17... Qd8 18. Bxd8) 18. Bf6 $1 {[%emt 0:00:18][%mdl 512] Weighted Error Value: White=0.21 (precise) /Black=0.78} 1-0

[Event "Mitropa Cup Women 2022"]
[Site "Corte"]
[Date "2022.05.05"]
[Round "6.1"]
[White "Zimina, Olga"]
[Black "Guichard, Pauline"]
[Result "0-1"]
[ECO "A46"]
[WhiteElo "2336"]
[BlackElo "2377"]
[Annotator "TA"]
[PlyCount "100"]
[EventDate "2022.04.30"]
[EventType "team-tourn"]
[EventCountry "FRA"]
[SourceTitle "playchess.com"]
[Source "ChessBase"]
[SourceQuality "1"]
[WhiteTeam "Italy"]
[BlackTeam "France"]
[WhiteTeamCountry "ITA"]
[BlackTeamCountry "FRA"]
[TimeControl "40/5400+30:1800+30"]

{[%evp 21,100,33,35,18,23,20,18,12,20,0,0,0,2,-3,0,0,8,0,0,-1,0,-6,0,0,0,-12,-20,-27,0,0,0,0,6,5,6,7,11,11,58,0,0,0,0,0,0,0,0,0,0,-4,-2,-4,0,0,0,0,0,0,0,0,0,0,0,-9,-14,-60,-61,-631,-623,-610,-603,-29984,-29985,-29985,-29986,-29986,-1170,-29975,-29976,-5904,-5410]} 1. d4 {[%emt 0:00:05]} Nf6 {[%emt 0:00:06]} 2. Nf3 {[%emt 0:00:09]} e6 {[%emt 0:00:09]} 3. g3 {[%emt 0:00:05]} d5 {[%emt 0:00:16]} 4. Bg2 {[%emt 0:00:06]} Be7 {[%emt 0:00:09]} 5. c4 {[%emt 0:00:06]} O-O {[%emt 0:00:17]} 6. Nc3 {[%emt 0:00:04]} dxc4 {[%emt 0:00:20]} 7. Ne5 {[%emt 0:00:04]} Nc6 {[%emt 0:00:30]} 8. Bxc6 {[%emt 0:00:06]} bxc6 {[%emt 0:00:05]} 9. Nxc6 {[%emt 0:00:05]} Qe8 {[%emt 0:00:09]} 10. Nxe7+ {[%emt 0:00:05]} Qxe7 {[%emt 0:00:06]} 11. Qa4 {[%emt 0:00:04]} c5 {[%emt 0:00:44]} 12. dxc5 {[%emt 0:00:17] The main line 12.dxc5 scores better than 12.Qxc4. E06: Closed Catalan: Early deviations.} Qxc5 {[%emt 0:00:11]} 13. Be3 {[%emt 0:00:04]} Qc7 {[%emt 0:01:49]} 14. Rd1 {[%emt 0:00:07] The position is equal.} Nd5 {[%emt 0:04:04] [#]} 15. Nxd5 $146 {[%emt 0:05:08]} (15. Bd4 {is interesting.} Rd8 16. O-O Bd7 17. Qa3) ({Predecessor:} 15. Bd4 Bb7 16. Nxd5 exd5 17. f3 Rfe8 {½-½ (17) Babic,D (2459)-Turgut,T (2612) ICCF email 2017}) 15... exd5 {[%emt 0:00:06]} 16. O-O {[%emt 0:03:32]} Be6 {[%emt 0:15:29]} 17. Rd4 {[%emt 0:06:36]} Rab8 {[%emt 0:08:51]} 18. Qc2 {[%emt 0:00:55]} Qe5 {[%emt 0:00:53]} 19. Rfd1 {[%emt 0:01:15] Hoping for Bf4.} Rb5 {[%emt 0:03:28]} 20. Qd2 {[%emt 0:05:45]} Qf6 {[%emt 0:04:52]} 21. Bg5 {[%emt 0:09:35]} Qg6 {[%emt 0:04:06]} 22. Bf4 {[%emt 0:00:23] Against Rfb8} h6 {[%emt 0:00:22]} 23. Qc3 {[%emt 0:06:19]} Rc8 {[%emt 0:03:36]} 24. Be5 {[%emt 0:06:20]} Rc6 {[%emt 0:06:31]} 25. Rf4 {[%emt 0:09:46]} Ra6 {[%emt 0:11:54]} (25... f6 $5 26. Bd4 Ra6 $11) 26. a3 {[%emt 0:01:40]} Rc6 {[%emt 0:02:51]} 27. Qe3 {[%emt 0:05:08]} Rb7 {[%emt 0:01:45]} 28. Bc3 {[%emt 0:01:54]} Rc8 {[%emt 0:01:08]} 29. h4 {[%emt 0:03:27]} Re8 {[%emt 0:11:18] [#]} (29... Re7 $11) 30. Qd4 {[%emt 0:16:27]} ({White should play} 30. Rxd5 $1 $14 Qb1+ (30... Rbe7 31. Rd1) 31. Kh2) 30... Rbe7 {[%emt 0:02:18]} 31. Bb4 {[%emt 0:00:51]} Rd7 {[%emt 0:00:26]} 32. Bc3 {[%emt 0:00:06]} Rde7 {[%emt 0:00:06]} 33. Bb4 {[%emt 0:02:04]} Rd7 {[%emt 0:00:16]} 34. Bc3 {[%emt 0:06:50]} f6 {[%emt 0:00:21]} 35. Bb4 {[%emt 0:07:06]} h5 {[%emt 0:01:09]} (35... Bf5 {feels hotter.} 36. Re1 Be4 37. Kh2 Qf7) 36. Qd2 {[%emt 0:01:50]} Bg4 {[%emt 0:05:11]} 37. Re1 {[%emt 0:00:02]} Qf7 {[%emt 0:01:06]} 38. Rd4 {[%emt 0:00:46]} Qe6 {[%emt 0:02:45]} 39. Kf1 {[%emt 0:01:56]} Bf5 {[%emt 0:02:33] White must now prevent ...Be4.} 40. Kg1 {[%emt 0:01:01]} Bg4 {[%emt 0:01:47]} 41. Qf4 {[%emt 0:08:13]} Bf5 {[%emt 0:11:58][%cal Bg4f5,Bf5g6,Bg6e4][%mdl 32]} (41... Bxe2 $2 42. Rd2 Qg4 43. Qxg4 hxg4 44. Rexe2 $18) 42. Red1 {[%emt 0:06:24]} Bg6 {[%emt 0:02:19]} 43. R1d2 {[%emt 0:01:16]} (43. R4d2 $11 {feels stronger.}) 43... Qh3 $1 $15 {[%emt 0:03:37]} 44. Bd6 $2 {[%emt 0:06:14][%mdl 8192] This costs White the game.} (44. g4 $15) 44... Be4 $19 {[%emt 0:05:06][%csl Ge4][%cal Rh3h1]} ({Worse is} 44... Re4 45. Rxe4 dxe4 46. Bb4 $11) 45. f3 {[%emt 0:00:09] [#]} Bd3 {[%emt 0:00:27][%mdl 512]} 46. Rxd5 {[%emt 0:02:49]} (46. e4 Qf1+) 46... Bxe2 {[%emt 0:03:09]} 47. Rd1 {[%emt 0:02:00]} Bxd1 {[%emt 0:00:47]} 48. Rxd1 {[%emt 0:00:04]} Qe6 {[%emt 0:00:21]} (48... Kh8 $142 49. Qxc4 {[#]} Rxd6 $1 {[%mdl 512]} 50. Qf1 Qxg3+ 51. Kh1 Rde6 52. f4 Re2 53. Qxe2 Rxe2 54. Rd8+ Kh7 55. Rh8+ Kxh8 56. f5 Qh2#) 49. Rd2 {[%emt 0:02:55]} Qe1+ {[%emt 0:00:15]} 50. Kg2 {[%emt 0:00:05]} Re2+ {[%emt 0:00:07] Weighted Error Value: White=0.53/Black=0.20 (precise)} 0-1

[Event "Mitropa Cup Women 2022"]
[Site "Corte"]
[Date "2022.05.05"]
[Round "6.1"]
[White "Hakimifard, Ghazal"]
[Black "Unuk, Laura"]
[Result "1/2-1/2"]
[ECO "C77"]
[WhiteElo "2288"]
[BlackElo "2338"]
[Annotator "TA"]
[PlyCount "42"]
[EventDate "2022.04.30"]
[EventType "team-tourn"]
[EventCountry "FRA"]
[SourceTitle "playchess.com"]
[Source "ChessBase"]
[SourceQuality "1"]
[WhiteTeam "Switzerland"]
[BlackTeam "Slovenia"]
[WhiteTeamCountry "SUI"]
[BlackTeamCountry "SLO"]
[TimeControl "40/5400+30:1800+30"]

{[%evp 15,42,4,14,6,4,2,10,6,10,7,15,14,14,12,5,0,0,0,0,0,0,0,0,-35,100,31,49,0,80]} 1. e4 {[%emt 0:00:03] McShane,L} e5 {[%emt 0:00:29]} 2. Nf3 {[%emt 0:00:06]} Nc6 {[%emt 0:00:04]} 3. Bb5 {[%emt 0:00:05][%cal Bf1b5,Bb5a4,Ba4b3][%mdl 32]} a6 {[%emt 0:00:06]} 4. Ba4 {[%emt 0:00:04]} Nf6 {[%emt 0:00:11]} 5. d3 {[%emt 0:00:06]} Bc5 {[%emt 0:00:42]} 6. O-O {[%emt 0:00:13]} b5 {[%emt 0:00:27]} 7. Bb3 {[%emt 0:00:02]} d6 {[%emt 0:00:12]} 8. c3 {[%emt 0:01:04]} h6 {[%emt 0:00:37]} 9. Re1 {[%emt 0:01:08] Recently 9.Nbd2 got a lot of attention. C78: Ruy Lopez: Archangelsk and Möller Defences.} O-O {[%emt 0:01:43]} 10. Nbd2 {[%emt 0:00:04]} Ne7 {[%emt 0:02:07]} 11. Nf1 {[%emt 0:01:34]} Ng6 {[%emt 0:00:24]} 12. Ng3 {[%emt 0:02:30] [#]} Rb8 $146 {[%emt 0:05:24]} ({Predecessor:} 12... Re8 13. h3 Bb7 14. Nh2 d5 15. Qf3 Nh4 16. Qe2 Ng6 17. Ng4 Nf4 18. Qf3 dxe4 19. dxe4 Nxg4 20. hxg4 {1-0 (56) McShane,L (2664)-Tkachiev,V (2636) Wijk aan Zee 2011 CBM 141 [McShane,L]}) 13. h3 {[%emt 0:05:43]} Re8 {[%emt 0:04:02]} 14. d4 {[%emt 0:09:41]} Bb6 {[%emt 0:06:38]} 15. Be3 {[%emt 0:08:25]} exd4 {[%emt 0:22:14]} 16. Nxd4 {[%emt 0:13:12][%cal Bf3d4,Bd4f5,Bf5g7][%mdl 32] [#] Strongly threatening Nc6.} Bb7 {[%emt 0:11:10] Inhibits Nc6.} 17. Ndf5 {[%emt 0:14:20] Bxb6 is the strong threat.} Bxe3 {[%emt 0:13:27]} 18. Rxe3 {[%emt 0:00:01]} Nxe4 {[%emt 0:16:53]} 19. Nxg7 {[%emt 0:02:59]} Qf6 {[%emt 0:02:26]} (19... Kxg7 $15 {keeps the upper hand.} 20. Nxe4 (20. Qd4+ $2 Re5 $19) 20... Bxe4 21. Qd4+ Qf6 22. Rxe4 Qxd4 23. Rxd4 Re2) 20. N3f5 {[%emt 0:14:35]} (20. N7f5 $16) 20... Re5 $14 {[%emt 0:01:33]} 21. Rf3 {[%emt 0:02:38]} (21. Bc2 $1 $14) 21... Kh8 {[%emt 0:06:52] Weighted Error Value: White=0.14 (very precise) /Black=0.12 (very precise)} (21... Qg5 $11 22. h4 Nxh4 23. Nxh4 Qxh4 24. Rxf7 d5) 1/2-1/2

[Event "Mitropa Cup Women 2022"]
[Site "Corte"]
[Date "2022.05.05"]
[Round "6.1"]
[White "Medic, Mirjana"]
[Black "Schulze, Lara"]
[Result "1-0"]
[ECO "D05"]
[WhiteElo "2167"]
[BlackElo "2303"]
[Annotator "TA"]
[PlyCount "95"]
[EventDate "2022.04.30"]
[EventType "team-tourn"]
[EventCountry "FRA"]
[SourceTitle "playchess.com"]
[Source "ChessBase"]
[SourceQuality "1"]
[WhiteTeam "Croatia"]
[BlackTeam "Germany"]
[WhiteTeamCountry "CRO"]
[BlackTeamCountry "GER"]
[TimeControl "40/5400+30:1800+30"]

{[%evp 16,95,0,0,0,0,18,25,26,0,-12,-28,7,0,49,49,35,32,38,-6,67,63,61,63,80,52,99,29,26,30,31,0,0,0,0,0,56,43,50,45,38,58,70,72,190,85,93,98,93,100,82,24,151,172,131,132,174,165,146,163,363,272,464,379,400,393,544,577,575,564,527,498,1012,920,916,920,910,842,666,643,824,781]} 1. d4 {[%emt 0:00:02]} d5 {[%emt 0:00:23]} 2. Nf3 {[%emt 0:00:21]} Nf6 {[%emt 0:00:22]} 3. e3 {[%emt 0:01:04]} e6 {[%emt 0:01:53]} 4. c4 {[%emt 0:00:21]} b6 {[%emt 0:00:24]} 5. Nc3 {[%emt 0:00:46]} Bb7 {[%emt 0:00:30]} 6. Bd3 {[%emt 0:03:25]} Bd6 {[%emt 0:03:12]} 7. O-O {[%emt 0:01:45]} O-O {[%emt 0:00:19]} 8. b3 {[%emt 0:04:34]} Nbd7 {[%emt 0:00:21]} 9. Bb2 {[%emt 0:00:12]} Re8 {[%emt 0:00:08] E14: Queen's Indian: Classical Variation (4 e3).} 10. Re1 {[%emt 0:05:52]} c5 {[%emt 0:17:08]} 11. cxd5 {[%emt 0:08:54]} exd5 {[%emt 0:01:27] [#] White has an edge.} 12. dxc5 $146 {[%emt 0:01:07]} ({Predecessor:} 12. Rc1 a6 13. Bf5 Rc8 14. dxc5 bxc5 15. Na4 Rc7 16. Bh3 Ne4 17. Nc3 {½-½ (41) Fier,A (2573)-Vasquez Schroder,R (2494) Roquetas de Mar 2022}) 12... bxc5 {[%emt 0:01:19]} 13. Bf5 {[%emt 0:05:51]} Qe7 {[%emt 0:13:21]} 14. Rc1 {[%emt 0:07:23]} Ne5 {[%emt 0:12:26]} (14... Rad8 $11 {feels stronger.}) 15. Nb5 $14 {[%emt 0:04:19]} Nxf3+ {[%emt 0:08:29]} 16. Qxf3 {[%emt 0:00:13] Bxf6 is the strong threat.} d4 $1 {[%emt 0:01:23]} 17. Qh3 {[%emt 0:00:36][%cal Ob3b4] [#]} g6 {[%emt 0:06:00]} (17... Bf4 $1 $11) 18. Nxd6 {[%emt 0:02:23]} Qxd6 {[%emt 0:00:17]} 19. Bd3 {[%emt 0:02:55]} Nd5 {[%emt 0:04:26]} 20. Bb5 {[%emt 0:07:48] A strong pair of Bishops.} Re6 {[%emt 0:05:43]} (20... Re5 $14 {was preferrable.}) 21. Qg3 {[%emt 0:03:42]} ({White should try} 21. exd4 $16 {Strongly threatening Rxe6.} Rxe1+ 22. Rxe1) 21... Qxg3 {[%emt 0:03:41]} 22. hxg3 {[%emt 0:00:06]} dxe3 {[%emt 0:00:21]} 23. fxe3 {[%emt 0:00:11]} Nxe3 {[%emt 0:02:09]} 24. Rxc5 {[%emt 0:02:27]} Rd8 {[%emt 0:02:43]} 25. Bc3 {[%emt 0:01:13] Prevents Rd2.} Nd5 {[%emt 0:08:51] Against Rc7} (25... a6 $11 26. Bc4 Nxc4 27. Rxe6 fxe6 28. Rxc4 Rd1+ 29. Kf2 Bd5 30. Rc8+ Kf7) 26. Rxe6 {[%emt 0:03:31]} fxe6 {[%emt 0:00:02]} 27. Be5 {[%emt 0:00:21]} Ne3 {[%emt 0:01:29]} 28. Rc7 {[%emt 0:04:19]} Rd1+ {[%emt 0:02:21]} 29. Kf2 {[%emt 0:00:02]} Ng4+ {[%emt 0:00:27]} 30. Ke2 {[%emt 0:00:30]} Rd5 {[%emt 0:00:32]} 31. Rxb7 {[%emt 0:01:57] White is more active.} Rxe5+ $16 {[%emt 0:00:06][%mdl 4096] Endgame KRB-KRN} 32. Kd2 {[%emt 0:00:11]} Nf6 {[%emt 0:01:40]} 33. Bd3 {[%emt 0:02:45]} (33. Bc4 $16) 33... Rg5 {[%emt 0:01:06]} (33... a5 $1 $11 {remains equal.}) 34. Rxa7 {[%emt 0:03:41]} Rxg3 {[%emt 0:00:02] [#]} 35. Bf1 {[%emt 0:00:41]} Ne4+ {[%emt 0:01:14]} 36. Kc2 {[%emt 0:00:57] Threatens to win with b4.} Rc3+ {[%emt 0:00:36]} 37. Kb2 {[%emt 0:00:11]} Re3 $2 {[%emt 0:00:30]} (37... Rg3 {was necessary.}) 38. Rc7 {[%emt 0:02:03] Hoping for a4.} h5 $2 {[%emt 0:01:22]} (38... Kf8 39. Rxh7 Rg3) 39. b4 {[%emt 0:04:07][%cal Bb3b4,Bb4b5][%mdl 32]} Nd2 {[%emt 0:00:23]} 40. Ba6 {[%emt 0:00:43]} h4 {[%emt 0:00:46]} 41. Rc2 {[%emt 0:30:36] White is clearly winning.} Ne4 {[%emt 0:03:14]} 42. b5 {[%emt 0:00:00]} Nd6 {[%emt 0:03:19]} 43. b6 {[%emt 0:00:00]} Re5 {[%emt 0:01:34]} (43... Kf8 $142 44. b7 Nxb7 45. Bxb7 Ke7) 44. Rc6 {[%emt 0:00:00]} Rd5 {[%emt 0:00:50]} 45. a4 {[%emt 0:00:00]} ({Worse is} 45. b7 Nxb7 46. Rxe6 (46. Bxb7 Rb5+ 47. Kc2 Rxb7 $11) 46... Kf7 $11) 45... Kf7 {[%emt 0:03:29]} 46. b7 {[%emt 0:00:00]} Nxb7 {[%emt 0:00:11]} 47. Rc7+ {[%emt 0:00:00]} Kf6 {[%emt 0:00:04]} 48. Bxb7 {[%emt 0:00:00] Weighted Error Value: White=0.16 (very precise) /Black=0.43} 1-0

[Event "Mitropa Cup Women 2022"]
[Site "Corte"]
[Date "2022.05.05"]
[Round "6.2"]
[White "Navrotescu, Andreea"]
[Black "Brunello, Marina"]
[Result "0-1"]
[ECO "A46"]
[WhiteElo "2318"]
[BlackElo "2349"]
[Annotator "TA"]
[PlyCount "74"]
[EventDate "2022.04.30"]
[EventType "team-tourn"]
[EventCountry "FRA"]
[SourceTitle "playchess.com"]
[Source "ChessBase"]
[SourceQuality "1"]
[WhiteTeam "France"]
[BlackTeam "Italy"]
[WhiteTeamCountry "FRA"]
[BlackTeamCountry "ITA"]
[TimeControl "40/5400+30:1800+30"]

{[%evp 14,74,0,0,12,0,0,-21,-4,-100,-95,-97,-97,-131,-116,-96,-66,-150,-62,-49,-27,-133,-85,-85,-83,-75,-63,-70,-2,-67,-62,-72,-73,-454,-452,-433,-441,-456,-434,-495,-496,-492,-482,-491,-479,-555,-539,-513,-462,-676,-667,-666,-657,-687,-666,-714,-705,-813,-797,-880,-868,-850,-840]} 1. d4 {[%emt 0:00:03]} Nf6 {[%emt 0:00:07]} 2. Nf3 {[%emt 0:00:07]} e6 {[%emt 0:00:07]} 3. e3 {[%emt 0:00:06]} b6 {[%emt 0:00:15]} 4. Bd3 {[%emt 0:00:13]} Bb7 {[%emt 0:00:04]} 5. O-O {[%emt 0:00:16]} Be7 {[%emt 0:04:57]} 6. c4 {[%emt 0:00:28]} d5 {[%emt 0:00:19]} 7. b3 {[%emt 0:01:18]} O-O {[%emt 0:00:50]} 8. Bb2 {[%emt 0:00:16]} c5 {[%emt 0:02:20] E14: Queen's Indian: Classical Variation (4 e3).} 9. cxd5 {[%emt 0:00:31]} Nxd5 {[%emt 0:19:20]} 10. a3 {[%emt 0:02:24] [#]} Nd7 $146 {[%emt 0:03:08] The position is equal.} ({Predecessor:} 10... cxd4 11. Nxd4 Bf6 12. Nd2 Nc6 13. Ne4 Nxd4 14. Nxf6+ Qxf6 15. Bxd4 e5 16. Qh5 Rfe8 17. Qxh7+ {0-1 (28) Tarun,K (2309)-Nozdrachev,L (2370) Chess.com INT 2021}) 11. e4 {[%emt 0:07:00]} (11. Nbd2 $11 {keeps the balance.}) 11... Nf4 $17 {[%emt 0:02:03]} 12. Bc2 {[%emt 0:00:39]} cxd4 {[%emt 0:06:41] Black is more active.} 13. Nxd4 {[%emt 0:01:05]} Bf6 {[%emt 0:00:20]} 14. g3 {[%emt 0:05:55]} Ng6 {[%emt 0:03:59]} 15. f3 {[%emt 0:01:34]} (15. Qe2 $15) 15... Ne7 {[%emt 0:09:49]} (15... b5 $17 {Threatens to win with ...Qb6.} 16. a4 b4) 16. Nc3 $15 {[%emt 0:12:48]} Nc6 {[%emt 0:05:43]} 17. Ndb5 {[%emt 0:20:28]} (17. Ncb5 $11 {remains equal.}) 17... Ba6 {[%emt 0:01:50]} ({Black should play} 17... Qe7 $1 {Hoping for ...a6.} 18. Rf2 Nde5) 18. a4 $17 {[%emt 0:00:41]} Nc5 {[%emt 0:01:06]} 19. Rf2 {[%emt 0:08:50]} Bxb5 {[%emt 0:18:03]} 20. axb5 {[%emt 0:00:02]} Nd4 {[%emt 0:00:05]} (20... Na5 $15 21. Re2 (21. Rd2 Qc7 $15) 21... Qxd1+ 22. Rxd1 Ncxb3) 21. Kg2 {[%emt 0:08:23]} (21. b4 $11 Nxc2 22. Qxc2) 21... Nxc2 $15 {[%emt 0:03:57]} 22. Qxc2 {[#]} Qd3 $1 23. Ra3 $2 {[%emt 0:07:22][%mdl 8192] [#] This move loses the game for White.} (23. b4 $17 {is more resistant.} Qxc2 24. Rxc2) 23... Qxc2 $1 $19 {[%emt 0:00:12] Black is clearly winning.} 24. Rxc2 {[%emt 0:00:02]} Nd3 {[%emt 0:00:06] White must now prevent ...Ne1+.} 25. Rd2 {[%emt 0:06:25]} Nxb2 {[%emt 0:00:13]} 26. Ne2 {[%emt 0:00:15]} Rfd8 {[%emt 0:00:38]} 27. Rxd8+ {[%emt 0:00:43]} Rxd8 {[%emt 0:02:09]} 28. Rxa7 {[%emt 0:00:05]} g5 {[%emt 0:00:14]} 29. Rb7 {[%emt 0:00:33]} Rd2 {[%emt 0:00:26]} 30. Kf1 {[%emt 0:00:11]} Rd3 {[%emt 0:00:08]} 31. Rxb6 {[%emt 0:01:22]} (31. f4 $142 gxf4 32. Rb8+ Kg7 33. Nxf4 Rxb3 34. Nh5+ Kg6 35. Nf4+ Kg7 36. Nh5+ Kg6 37. Nf4+ Kh6 38. Rb7) 31... Rxf3+ {[%emt 0:00:11]} 32. Kg2 {[%emt 0:00:02]} Rxb3 {[%emt 0:00:17]} 33. h4 {[%emt 0:01:43]} h6 {[%emt 0:00:15][%cal Bh7h6,Bh6g5][%mdl 32]} 34. hxg5 {[%emt 0:00:33]} hxg5 {[%emt 0:00:04]} 35. g4 {[%emt 0:00:19]} Be5 {[%emt 0:00:08]} 36. Nc1 {[%emt 0:00:54]} Rg3+ {[%emt 0:01:59]} 37. Kf1 {[%emt 0:01:02]} Rxg4 {[%emt 0:00:18] Weighted Error Value: White=0.64/Black=0.14 (very precise)} 0-1